Workbook

Sheet Sheet1
A1: 附表2
A2: 蓬江区2023年调整预算收支明细表
J3: 单位：万元
A4: 收入 | E4: 支出
A5: 项目 | B5: 预算数 | C5: 调整预算数 | E5: 项目 | F5: 预算数 | G5: 调整预算数最初数 | H5: 12月5日额外新增 | I5: 科技调账 | J5: 调整预算数
A7: 一、税收收入 | B7: =SUM(B8:B21) -> 188,110 | C7: =SUM(C8:C21) -> 188,110 | E7: 一、一般公共预算支出 | F7: 511,053 | G7: =G8+G129+G135+G160+G182+G197+G220+G297+G341+G368+G388+G424+G433+G444+G451+G456+G469+G477+G481+G503+G504+G507+G510 -> 369,395 | H7: 2,264 | I7: 0 | J7: 371,659
A8: 增值税 | B8: 42,405 | C8: 72,385 | D8: 201 | E8: 一般公共服务 | F8: 83,559 | G8: =G9+G17+G24+G31+G37+G44+G53+G55+G60+G65+G72+G75+G78+G80+G84+G88+G93+G97+G102+G105+G110+G113+G117+G127 -> 60,116 | H8: 155 | I8: -388 | J8: =G8+H8+I8 -> 59,883
A9: 企业所得税 | B9: 15,872 | C9: 17,085 | D9: 20101 | E9: 人大事务 | F9: 3,511 | G9: =SUM(G10:G16) -> 1,414 | H9: =SUM(H10:H16) -> 2 | J9: 1,416
A10: 个人所得税 | B10: 9,252 | C10: 7,744 | D10: 2010101 | E10: 行政运行 | F10: 1,905 | G10: 1,088 | J10: 1,088
A11: 资源税 | B11: 475 | C11: 265 | D11: 2010102 | E11: 一般行政管理事务 | F11: 931 | G11: 122 | H11: 1 | J11: 123
A12: 城市维护建设税 | B12: 20,833 | C12: 20,155 | D12: 2010104 | E12: 人大会议 | F12: 100 | G12: 15 | J12: 15
A13: 房产税 | B13: 22,002 | C13: 18,080 | D13: 2010105 | E13: 人大立法 | F13: 6 | G13: 0 | J13: 0
A14: 印花税 | B14: 7,309 | C14: 6,716 | D14: 2010108 | E14: 代表工作 | F14: 282 | G14: 94 | J14: 94
A15: 城镇土地使用税 | B15: 8,518 | C15: 5,431 | D15: 2010150 | E15: 事业运行 | F15: 66 | G15: 58 | J15: 58
A16: 土地增值税 | B16: 22,018 | C16: 11,714 | D16: 2010199 | E16: 其他人大事务支出 | F16: 221 | G16: 36 | H16: 1 | J16: 37
A17: 车船税 | B17: 5,419 | C17: 4,783 | D17: 20102 | E17: 政协事务 | F17: 1,604 | G17: =SUM(G18:G23) -> 1,047 | J17: 1,047
A18: 耕地占用税 | B18: 2,562 | C18: 1,475 | D18: 2010201 | E18: 行政运行 | F18: 1,167 | G18: 882 | J18: 882
A19: 契税 | B19: 31,259 | C19: 22,119 | D19: 2010202 | E19: 一般行政管理事务 | F19: 272 | G19: 100 | J19: 100
A20: 环境保护税 | B20: 186 | C20: 153 | D20: 2010204 | E20: 政协会议 | F20: 60 | G20: 6 | J20: 6
A21: 其他税收收入 | C21: 5 | D21: 2010205 | E21: 委员视察 | F21: 50 | G21: 4 | J21: 4
D22: 2010250 | E22: 事业运行 | F22: 52 | G22: 55 | J22: 55
A23: 二、非税收入 | B23: =SUM(B24:B29) -> 126,420 | C23: =SUM(C24:C29) -> 114,437 | D23: 2010299 | E23: 其他政协事务支出 | F23: 3 | J23: 0
A24: 专项收入 | B24: 34,098 | C24: 48,480 | D24: 20103 | E24: 政府办公厅(室)及相关机构事务 | F24: 36,875 | G24: =SUM(G25:G30) -> 31,357 | H24: =SUM(H25:H30) -> 82 | J24: 31,439
A25: 行政事业性收费收入 | B25: 7,484 | C25: 6,752 | D25: 2010301 | E25: 行政运行 | F25: 21,444 | G25: 19,224 | H25: 16 | J25: 19,240
A26: 罚没收入 | B26: 5,038 | C26: 18,534 | D26: 2010302 | E26: 一般行政管理事务 | F26: 7,134 | G26: 5,936 | H26: 58 | J26: 5,994
A27: 国有资本经营收入 | B27: 8,023 | C27: 2,520 | D27: 2010303 | E27: 机关服务 | F27: 114 | G27: 35 | J27: 35
A28: 国有资源（资产）有偿使用收入 | B28: 71,237 | C28: 38,058 | D28: 2010308 | E28: 信访事务 | F28: 100 | G28: 100 | J28: 100
A29: 其他收入 | B29: 540 | C29: 93 | D29: 2010350 | E29: 事业运行 | F29: 7,169 | G29: 5,546 | J29: 5,546
D30: 2010399 | E30: 其他政府办公厅（室）及相关机构事务支出 | F30: 914 | G30: 516 | H30: 8 | J30: 524
A31: 三、一般债券收入 | B31: 46,793 | C31: 46,765 | D31: 20104 | E31: 发展与改革事务 | F31: 955 | G31: =SUM(G32:G36) -> 739 | J31: 739
A32: 四、调入资金 | B32: 189,576 | C32: 7,249 | D32: 2010401 | E32: 行政运行 | F32: 450 | G32: 401 | J32: 401
A33: 五、上级补助收入 | B33: 66,393 | C33: 135,872 | D33: 2010402 | E33: 一般行政管理事务 | F33: 349 | G33: 210 | J33: 210
A34: 六、预算稳定调节基金 | D34: 2010408 | E34: 物价管理 | G34: 6.27 | J34: 6
A35: 七、上年结余 | B35: 534 | C35: 3,184 | D35: 2010450 | E35: 事业运行 | F35: 126 | G35: 122 | J35: 122
A36: 上年结转 | B36: 534 | C36: 3,184 | D36: 2010499 | E36: 其他发展与改革事务支出 | F36: 30 | J36: 0
A37: 净结余 | D37: 20105 | E37: 统计信息事务 | F37: 842 | G37: =SUM(G38:G43) -> 486 | J37: 486
D38: 2010501 | E38: 行政运行 | F38: 170 | G38: 144 | J38: 144
D39: 2010502 | E39: 一般行政管理事务 | F39: 209 | G39: 99 | J39: 99
D40: 2010505 | E40: 专项统计业务 | F40: 23 | G40: 17 | J40: 17
D41: 2010507 | E41: 专项普查活动 | F41: 359 | G41: 153 | J41: 153
D42: 2010550 | E42: 事业运行 | F42: 68 | G42: 63 | J42: 63
D43: 2010599 | E43: 其他统计信息事务支出 | F43: 13 | G43: 10 | J43: 10
D44: 20106 | E44: 财政事务 | F44: 2,420 | G44: =SUM(G45:G52) -> 2,210 | J44: 2,210
D45: 2010601 | E45: 行政运行 | F45: 644 | G45: 669 | J45: 669
D46: 2010602 | E46: 一般行政管理事务 | F46: 230 | G46: 201 | J46: 201
D47: 2010604 | E47: 预算改革业务 | F47: 50 | G47: 12 | J47: 12
D48: 2010605 | E48: 财政国库业务 | F48: 139 | J48: 0
D49: 2010607 | E49: 信息化建设 | F49: 49 | G49: 44 | J49: 44
D50: 2010608 | E50: 财政委托业务支出 | F50: 327 | J50: 0
D51: 2010650 | E51: 事业运行 | F51: 108 | G51: 137 | J51: 137
D52: 2010699 | E52: 其他财政事务支出 | F52: 873 | G52: 1,146 | J52: 1,146
D53: 20107 | E53: 税收事务 | F53: 8,000 | G53: =SUM(G54) -> 8,000 | J53: 8,000
D54: 2010799 | E54: 其他税收事务支出 | F54: 8,000 | G54: 8,000 | J54: 8,000
D55: 20108 | E55: 审计事务 | F55: 743 | G55: =SUM(G56:G59) -> 462 | H55: =SUM(H56:H59) -> 19 | J55: 481
D56: 2010801 | E56: 行政运行 | F56: 349 | G56: 236 | J56: 236
D57: 2010802 | E57: 一般行政管理事务 | F57: 387 | G57: 226 | H57: 19 | J57: 245
D58: 2010804 | E58: 审计业务 | F58: 1 | J58: 0
D59: 2010899 | E59: 其他审计事务支出 | F59: 6 | J59: 0
D60: 20111 | E60: 纪检监察事务 | F60: 3,214 | G60: =SUM(G61:G64) -> 1,867 | J60: 1,867
D61: 2011101 | E61: 行政运行 | F61: 2,840 | G61: 1,764 | J61: 1,764
D62: 2011102 | E62: 一般行政管理事务 | F62: 252 | G62: 20 | J62: 20
D63: 2011150 | E63: 事业运行 | F63: 107 | G63: 76 | J63: 76
D64: 2011199 | E64: 其他纪检监察事务支出 | F64: 15 | G64: 7 | J64: 7
D65: 20113 | E65: 商贸事务 | F65: 1,809 | G65: =SUM(G66:G71) -> 1,075 | H65: =SUM(H66:H71) -> 2 | J65: 1,077
D66: 2011301 | E66: 行政运行 | F66: 559 | G66: 505 | J66: 505
D67: 2011302 | E67: 一般行政管理事务 | F67: 409 | G67: 353 | J67: 353
D68: 2011307 | E68: 国内贸易管理 | F68: 213 | G68: 4 | J68: 4
D69: 2011308 | E69: 招商引资 | F69: 431 | G69: 55 | J69: 55
D70: 2011350 | E70: 事业运行 | F70: 162 | G70: 148 | J70: 148
D71: 2011399 | E71: 其他商贸事务支出 | F71: 35 | G71: 9 | H71: 2 | J71: 11
D72: 20114 | E72: 知识产权事务 | F72: 242 | G72: =SUM(G73:G74) -> 103 | J72: =G72+H72+I72 -> 103
D73: 2011409 | E73: 知识产权宏观管理 | F73: 95 | G73: 86 | J73: 86
D74: 2011499 | E74: 其他知识产权事务支出 | F74: 147 | G74: 17 | J74: 17
D75: 20123 | E75: 民族事务 | F75: 9 | G75: =SUM(G76:G77) -> 5 | J75: 5
D76: 2012301 | E76: 行政运行 | F76: 7 | G76: 5 | J76: 5
D77: 2012302 | E77: 一般行政管理事务 | F77: 2 | J77: 0
D78: 20125 | E78: 港澳台事务 | F78: 1 | G78: =SUM(G79) -> 0 | J78: 0
D79: 2012599 | E79: 其他港澳台事务支出 | F79: 1 | J79: 0
D80: 20126 | E80: 档案事务 | F80: 167 | G80: =SUM(G81:G83) -> 154 | J80: 154
D81: 2012601 | E81: 行政运行 | F81: 83 | G81: 101 | J81: 101
D82: 2012604 | E82: 档案馆 | F82: 83 | G82: 53 | J82: 53
D83: 2012699 | E83: 其他档案事务支出 | F83: 1 | J83: 0
D84: 20128 | E84: 民主党派及工商联事务 | F84: 256 | G84: =SUM(G85:G87) -> 221 | J84: 221
D85: 2012801 | E85: 行政运行 | F85: 177 | G85: 170 | J85: 170
D86: 2012802 | E86: 一般行政管理事务 | F86: 78 | G86: 51 | J86: 51
D87: 2012804 | E87: 参政议政 | F87: 1 | J87: 0
D88: 20129 | E88: 群众团体事务 | F88: 747 | G88: =SUM(G89:G92) -> 517 | J88: 517
D89: 2012901 | E89: 行政运行 | F89: 252 | G89: 245 | J89: 245
D90: 2012902 | E90: 一般行政管理事务 | F90: 170 | G90: 74 | J90: 74
D91: 2012950 | E91: 事业运行 | F91: 86 | G91: 64 | J91: 64
D92: 2012999 | E92: 其他群众团体事务支出 | F92: 239 | G92: 135 | J92: 135
D93: 20131 | E93: 党委办公厅（室）及相关机构事务 | F93: 3,066 | G93: =SUM(G94:G96) -> 1,445 | J93: 1,445
D94: 2013101 | E94: 行政运行 | F94: 1,312 | G94: 997 | J94: 997
D95: 2013102 | E95: 一般行政管理事务 | F95: 1,642 | G95: 379 | J95: 379
D96: 2013150 | E96: 事业运行 | F96: 112 | G96: 68 | J96: 68
D97: 20132 | E97: 组织事务 | F97: 7,962 | G97: =SUM(G98:G101) -> 3,301 | H97: =SUM(H98:H101) -> 50 | J97: 3,351
D98: 2013201 | E98: 行政运行 | F98: 763 | G98: 708 | J98: 708
D99: 2013202 | E99: 一般行政管理事务 | F99: 5,349 | G99: 2,079 | H99: 50 | J99: 2,129
D100: 2013250 | E100: 事业运行 | F100: 178 | G100: 190 | J100: 190
D101: 2013299 | E101: 其他组织事务支出 | F101: 1,672 | G101: 325 | J101: 325
D102: 20133 | E102: 宣传事务 | F102: 49 | G102: =SUM(G103:G104) -> 19 | J102: 19
D103: 2013350 | E103: 事业运行 | G103: 19 | J103: 19
D104: 2013399 | E104: 其他宣传事务支出 | F104: 49 | J104: 0
D105: 20134 | E105: 统战事务 | F105: 482 | G105: =SUM(G106:G109) -> 318 | J105: 318
D106: 2013401 | E106: 行政运行 | F106: 258 | G106: 232 | J106: 232
D107: 2013402 | E107: 一般行政管理事务 | F107: 193 | G107: 68 | J107: 68
D108: 2013405 | E108: 华侨事务 | F108: 17 | G108: 1 | J108: 1
D109: 2013450 | E109: 事业运行 | F109: 14 | G109: 17 | J109: 17
D110: 20136 | E110: 其他共产党事务支出 | F110: 50 | G110: =SUM(G111:G112) -> 5 | J110: 5
D111: 2013601 | E111: 行政运行 | F111: 36 | G111: 5 | J111: 5
D112: 2013699 | E112: 其他共产党事务支出 | F112: 14 | J112: 0
D113: 20137 | E113: 网信事务 | F113: 3,057 | G113: =SUM(G114:G116) -> 1,242 | I113: =SUM(I114:I116) -> -388 | J113: 854
D114: 2013701 | E114: 行政运行 | F114: 188 | G114: 177 | J114: 177
D115: 2013702 | E115: 一般行政管理事务 | F115: 2,562 | G115: 785 | I115: -388 | J115: 397
D116: 2013750 | E116: 事业运行 | F116: 307 | G116: 280 | J116: 280
D117: 20138 | E117: 市场监督管理事务 | F117: 7,078 | G117: =SUM(G118:G126) -> 4,045 | J117: 4,045
D118: 2013801 | E118: 行政运行 | F118: 4,352 | G118: 3,142 | J118: 3,142
D119: 2013802 | E119: 一般行政管理事务 | F119: 607 | G119: 445 | J119: 445
D120: 2013803 | E120: 机关服务 | F120: 50 | G120: 13 | J120: 13
D121: 2013804 | E121: 市场主体管理 | F121: 443 | G121: 52 | J121: 52
D122: 2013805 | E122: 市场秩序执法 | F122: 787 | G122: 90 | J122: 90
D123: 2013808 | E123: 信息化建设 | F123: 10 | J123: 0
D124: 2013816 | E124: 食品安全监管 | F124: 3 | J124: 0
D125: 2013850 | E125: 事业运行 | F125: 318 | G125: 261 | J125: 261
D126: 2013899 | E126: 其他市场监督管理事务 | F126: 508 | G126: 42 | J126: 42
D127: 20199 | E127: 其他一般公共服务支出 | F127: 420 | G127: =SUM(G128) -> 84 | J127: 84
D128: 2019999 | E128: 其他一般公共服务支出 | F128: 420 | G128: 84 | J128: 84
D129: 203 | E129: 国防支出 | F129: 694 | G129: =G130+G133 -> 505 | H129: =H130+H133 -> 2 | J129: 507
D130: 20306 | E130: 国防动员 | F130: 663 | G130: =SUM(G131:G132) -> 496 | H130: =SUM(H131:H132) -> 2 | J130: 498
D131: 2030601 | E131: 兵役征集 | F131: 35 | G131: 24 | H131: 2 | J131: 26
D132: 2030607 | E132: 民兵 | F132: 628 | G132: 472 | J132: 472
D133: 20399 | E133: 其他国防支出 | F133: 31 | G133: =SUM(G134) -> 8 | J133: 8
D134: 2039999 | E134: 其他国防支出 | F134: 31 | G134: 8 | J134: 8
D135: 204 | E135: 公共安全支出 | F135: 38,501 | G135: =G136+G141+G144+G148+G158 -> 32,301 | H135: =H136+H141+H144+H148+H158 -> 14 | J135: 32,315
D136: 20402 | E136: 公安 | F136: 32,688 | G136: =SUM(G137:G140) -> 28,643 | H136: =SUM(H137:H140) -> 0 | J136: =G136+H136+I136 -> 28,643
D137: 2040201 | E137: 行政运行 | F137: 22,324 | G137: 20,123 | J137: 20,123
D138: 2040202 | E138: 一般行政管理事务 | F138: 10,170 | G138: 8,457 | J138: 8,457
D139: 2040250 | E139: 事业运行 | G139: 3 | J139: 3
D140: 2040299 | E140: 其他公安支出 | F140: 194 | G140: 61 | J140: 61
D141: 20404 | E141: 检察 | F141: 739 | G141: =SUM(G142:G143) -> 701 | J141: 701
D142: 2040402 | E142: 一般行政管理事务 | F142: 739 | G142: 688 | J142: 688
D143: 2040450 | E143: 事业运行 | G143: 12 | J143: 12
D144: 20405 | E144: 法院 | F144: 1,849 | G144: =SUM(G145:G147) -> 1,241 | J144: 1,241
D145: 2040501 | E145: 行政运行 | F145: 1,162 | G145: 446 | J145: 446
D146: 2040502 | E146: 一般行政管理事务 | F146: 687 | G146: 777 | J146: 777
D147: 2040550 | E147: 事业运行 | G147: 18 | J147: 18
D148: 20406 | E148: 司法 | F148: 2,385 | G148: =SUM(G149:G157) -> 1,347 | J148: 1,347
D149: 2040601 | E149: 行政运行 | F149: 1,584 | G149: 860 | J149: 860
D150: 2040602 | E150: 一般行政管理事务 | F150: 294 | G150: 185 | J150: 185
D151: 2040604 | E151: 基层司法业务 | F151: 30 | J151: 0
D152: 2040605 | E152: 普法宣传 | F152: 30 | J152: 0
D153: 2040607 | E153: 公共法律服务 | F153: 250 | G153: 198 | J153: 198
D154: 2040610 | E154: 社区矫正 | F154: 30 | J154: 0
D155: 2040612 | E155: 法治建设 | F155: 35 | J155: 0
D156: 2040650 | E156: 事业运行 | F156: 100 | G156: 100 | J156: 100
D157: 2040699 | E157: 其他司法支出 | F157: 32 | G157: 4 | J157: 4
D158: 20499 | E158: 其他公共安全支出 | F158: 840 | G158: =SUM(G159) -> 369 | H158: =SUM(H159) -> 14 | J158: 383
D159: 2049999 | E159: 其他公共安全支出 | F159: 840 | G159: 369 | H159: 14 | J159: 383
D160: 205 | E160: 教育支出 | F160: 117,428 | G160: =G161+G165+G172+G174+G176+G178+G180 -> 93,241 | J160: 93,241
D161: 20501 | E161: 教育管理事务 | F161: 1,685 | G161: =SUM(G162:G164) -> 1,272 | J161: 1,272
D162: 2050101 | E162: 行政运行 | F162: 596 | G162: 508 | J162: 508
D163: 2050103 | E163: 机关服务 | F163: 716 | G163: 618 | J163: 618
D164: 2050199 | E164: 其他教育管理事务支出 | F164: 373 | G164: 146 | J164: 146
D165: 20502 | E165: 普通教育 | F165: 98,485 | G165: =SUM(G166:G171) -> 89,539 | J165: 89,539
D166: 2050201 | E166: 学前教育 | F166: 4,006 | G166: 2,278 | J166: 2,278
D167: 2050202 | E167: 小学教育 | F167: 52,783 | G167: 44,793 | J167: 44,793
D168: 2050203 | E168: 初中教育 | F168: 27,698 | G168: 22,460 | J168: 22,460
D169: 2050204 | E169: 高中教育 | F169: 5,207 | G169: 4,172 | J169: 4,172
D170: 2050205 | E170: 高等教育 | F170: 50 | G170: 0 | J170: 0
D171: 2050299 | E171: 其他普通教育支出 | F171: 8,741 | G171: 15,836 | J171: 15,836
D172: 20503 | E172: 职业教育 | F172: 1,462 | G172: =SUM(G173) -> 1,238 | J172: 1,238
D173: 2050302 | E173: 中等职业教育 | F173: 1,462 | G173: 1,238 | J173: 1,238
D174: 20507 | E174: 特殊教育 | F174: 56 | G174: =SUM(G175) -> 130 | J174: 130
D175: 2050701 | E175: 特殊学校教育 | F175: 56 | G175: 130 | J175: 130
D176: 20508 | E176: 进修及培训 | F176: 99 | G176: =SUM(G177) -> 34 | J176: 34
D177: 2050801 | E177: 教师进修 | F177: 99 | G177: 34 | J177: 34
D178: 20509 | E178: 教育费附加安排的支出 | F178: 15,640 | G178: =SUM(G179) -> 1,029 | J178: 1,029
D179: 2050999 | E179: 其他教育费附加安排的支出 | F179: 15,640 | G179: 1,029 | J179: 1,029
D180: 20599 | E180: 其他教育支出 | F180: 1 | G180: =SUM(G181) -> 1 | J180: 1
D181: 2059999 | E181: 其他教育支出 | F181: 1 | G181: 1 | J181: 1
D182: 206 | E182: 科学技术支出 | F182: 7,742 | G182: =G183+G188+G190+G192+G195 -> 1,556 | I182: =I183+I188+I190+I192+I195 -> 1,337 | J182: 2,893
D183: 20601 | E183: 科学技术管理事务 | F183: 583 | G183: =SUM(G184:G187) -> 275 | J183: 275
D184: 2060101 | E184: 行政运行 | F184: 185 | G184: 161 | J184: 161
D185: 2060102 | E185: 一般行政管理事务 | F185: 129 | G185: 36 | J185: 36
D186: 2060103 | E186: 机关服务 | F186: 71 | G186: 79 | J186: 79
D187: 2060199 | E187: 其他科学技术管理事务支出 | F187: 198 | J187: 0
D188: 20604 | E188: 技术研究与开发 | F188: 230 | G188: =SUM(G189) -> 695 | J188: 695
D189: 2060499 | E189: 其他技术研究与开发支出 | F189: 230 | G189: 695 | J189: 695
D190: 20605 | E190: 科技条件与服务 | G190: =SUM(G191) -> 366 | J190: 366
D191: 2060599 | E191: 其他科技条件与服务支出 | G191: 366 | J191: 366
D192: 20607 | E192: 科学技术普及 | F192: 131 | G192: =SUM(G193:G194) -> 65 | J192: 65
D193: 2060701 | E193: 机构运行 | F193: 72 | G193: 64 | J193: 64
D194: 2060702 | E194: 科普活动 | F194: 59 | G194: 1 | J194: 1
D195: 20699 | E195: 其他科学技术支出 | F195: 6,798 | G195: =SUM(G196) -> 155 | I195: =SUM(I196) -> 1,337 | J195: 1,492
D196: 2069999 | E196: 其他科学技术支出 | F196: 6,798 | G196: 155 | I196: 1337 | J196: 1,492
D197: 207 | E197: 文化旅游体育与传媒支出 | F197: 4,075 | G197: =G198+G209+G213+G217 -> 1,761 | H197: =H198+H209+H213+H217 -> 1 | J197: 1,762
D198: 20701 | E198: 文化和旅游 | F198: 3,516 | G198: =SUM(G199:G208) -> 1608.084554 | H198: =SUM(H199:H208) -> 0 | J198: 1,608
D199: 2070101 | E199: 行政运行 | F199: 749 | G199: 501 | J199: 501
D200: 2070102 | E200: 一般行政管理事务 | F200: 1,306 | G200: 421 | J200: =G200+H200+I200 -> 421
D201: 2070103 | E201: 机关服务 | G201: 2 | J201: 2
... 318 more rows
